bitfinex-derivatives/quotes_SOLF0:USTF0_20250614
["timestamp","ask_amount","ask_price","bid_price","bid_amount"]
[1749927171061,7.01070636,143.49,143.47,36.88]
[1749927171272,0.04420636,143.49,143.47,36.88]
[1749927173257,0.04420636,143.49,143.48,6.9669]
[1749927173464,51.94409924,143.57,143.48,7.89769924]
[1749927174263,51.94409924,143.57,143.5,6.9659]
[1749927174463,0.04791968,143.55,143.52,0.05317191]
[1749927176269,6.9645,143.53,143.52,0.05317191]
[1749927178065,6.9642,143.54,143.52,0.05317191]
[1749927181267,7.01151968,143.55,143.52,7.01807191]
[1749927181464,0.04791968,143.55,143.52,5.38318361]
[1749927181862,0.04791968,143.55,143.53,6.9645]
[1749927182166,0.04791968,143.55,143.52,5.38318361]
[1749927182363,12.2579117,143.62,143.53,5.32742106]
[1749927182364,6.9279,143.62,143.53,5.32742106]
[1749927182561,6.9279,143.62,143.56,5.32742106]
[1749927182862,6.9279,143.62,143.56,42.20742106]
[1749927183368,0.04758469,143.6,143.58,0.04446491]
[1749927184567,0.04758469,143.6,143.58,7.00626491]
[1749927184766,7.00868469,143.6,143.58,0.04446491]
[1749927184963,0.04758469,143.6,143.58,0.04446491]
[1749927186161,7.00898469,143.6,143.58,0.04446491]
[1749927186666,6.9616,143.59,143.58,0.04446491]
[1749927198470,6.9616,143.59,143.58,6.491e-05]
[1749927198672,9.216,143.59,143.58,6.491e-05]
[1749927198868,14.0479,143.59,143.58,6.491e-05]
[1749927199062,21.93785964,143.59,143.58,6.491e-05]
[1749927203869,14.0479,143.59,143.58,6.491e-05]
[1749927207380,19.37716175,143.59,143.58,6.491e-05]
[1749927211377,6.9616,143.59,143.58,6.491e-05]
[1749927214090,12.29086175,143.59,143.58,6.491e-05]
[1749927221484,6.9616,143.59,143.58,6.491e-05]
[1749927228386,7.00888469,143.6,143.58,6.491e-05]
[1749927228589,0.04758469,143.6,143.58,6.491e-05]
[1749927228889,0.04758469,143.6,143.58,5.32932666]
[1749927229394,0.04758469,143.6,143.58,12.29132666]
[1749927229586,0.04758469,143.6,143.58,5.32932666]
[1749927230393,7.00868469,143.6,143.58,5.32932666]
[1749927233391,0.04758469,143.6,143.58,12.29132666]
[1749927234194,0.04758469,143.6,143.59,6.9616]
[1749927234394,0.04758469,143.6,143.59,43.5416]
[1749927238284,6.9599,143.63,143.6,6.9608]
[1749927238488,6.9599,143.63,143.6,12.29006175]
[1749927239190,7.00687685,143.63,143.6,5.32926175]
[1749927239394,0.04697685,143.63,143.6,5.32926175]
[1749927239697,36.58,143.68,143.61,2.2864]
[1749927240096,6.9591,143.65,143.62,6.9599]
[1749927240491,36.58,143.68,143.62,5.32926175]
[1749927240695,7.01093004,143.66,143.64,0.05315202]
[1749927240893,0.05273004,143.66,143.64,0.05315202]
[1749927241395,6.9587,143.65,143.64,0.05315202]
[1749927242093,0.05273004,143.66,143.64,0.05315202]
[1749927242295,0.05273004,143.66,143.64,5.38241377]
[1749927242498,5.8544937,143.73,143.64,5.38241377]
[1749927242499,9.97216175,143.73,143.64,5.38241377]
[1749927242798,6.9565,143.7,143.66,5.32926175]
[1749927242996,38.7757,143.74,143.67,36.58]
[1749927243190,6.9561,143.71,143.67,36.58]
[1749927243395,36.58,143.74,143.68,12.28616175]
[1749927243591,0.05110466,143.7,143.68,7.00287005]
[1749927244296,1.21106664,143.79,143.69,5.32926175]
[1749927244493,41.90926175,143.8,143.72,5.32926175]
[1749927244687,6.9537,143.76,143.72,41.90926175]
[1749927245192,36.58,143.8,143.74,6.9539]
[1749927245193,6.9526,143.78,143.74,6.9539]
[1749927245400,6.9526,143.78,143.74,12.28316175]
[1749927245701,41.88926175,143.83,143.74,12.28316175]
[1749927245702,6.953,143.77,143.74,12.28316175]
[1749927246307,6.9535,143.76,143.74,0.04616449]
[1749927246514,0.04844869,143.77,143.74,0.04616449]
[1749927247105,0.04844869,143.77,143.75,12.28276175]
[1749927247405,0.04844869,143.77,143.74,0.04616449]
[1749927249215,6.9538,143.75,143.74,0.04616449]
[1749927252110,6.9554,143.72,143.68,12.28616175]
[1749927252308,6.9554,143.72,143.69,36.58]
[1749927253011,4.5415,143.78,143.69,36.58]
[1749927253217,0.0461481,143.75,143.72,5.38169928]
[1749927253411,0.0461481,143.75,143.74,5.32926175]
[1749927253805,6.9543,143.74,143.73,36.58]
[1749927254215,6.9543,143.74,143.72,0.05243753]
[1749927255012,6.9548,143.73,143.72,0.05243753]
[1749927256213,6.9545,143.74,143.72,0.05243753]
[1749927256508,0.0461481,143.75,143.72,0.05243753]
[1749927257810,0.0461481,143.75,143.73,5.32926175]
[1749927258206,38.9025,143.81,143.74,36.58]
[1749927258207,6.9517,143.8,143.74,36.58]
[1749927258412,38.9025,143.81,143.74,36.58]
[1749927258615,44.23176175,143.81,143.74,36.58]
[1749927258812,44.23176175,143.81,143.74,43.5343]
[1749927259422,6.9527,143.78,143.76,0.0449088]
[1749927260021,6.9529,143.77,143.76,0.0449088]
[1749927261623,6.9525,143.78,143.76,0.0449088]
[1749927262018,0.04728974,143.79,143.76,0.0449088]
[1749927262324,6.9524,143.78,143.76,0.0449088]
[1749927263617,6.9529,143.77,143.76,0.0449088]
[1749927265127,6.9551,143.73,143.71,36.58]
[1749927265628,6.9547,143.74,143.71,36.58]
[1749927266227,7.00203978,143.74,143.71,7.00779345]
[1749927266620,7.00203978,143.74,143.71,0.05209345]
[1749927266821,6.9549,143.73,143.71,0.05209345]
[1749927267017,0.04733978,143.74,143.71,0.05209345]
[1749927268729,0.04733978,143.74,143.72,5.32926175]
[1749927269231,0.04733978,143.74,143.73,6.9548]
[1749927270233,6.9526,143.78,143.75,6.9534]
[1749927270430,2.3225,143.81,143.75,43.5334]
[1749927270733,2.3225,143.81,143.75,36.58]
[1749927270734,5.32926175,143.79,143.75,36.58]
[1749927270923,5.32926175,143.79,143.72,48.86426175]
[1749927271327,0.05244939,143.77,143.74,0.0488941]
[1749927272130,6.9534,143.76,143.74,0.0488941]
[1749927273026,6.9538,143.75,143.74,0.0488941]
[1749927273638,0.05244939,143.77,143.74,5.37815585]
[1749927273931,0.05244939,143.77,143.76,12.28266175]
[1749927274122,0.05244939,143.77,143.76,48.86266175]
[1749927276430,0.05244939,143.77,143.76,36.58]
[1749927277032,0.05244939,143.77,143.76,43.5334]
[1749927281034,0.05244939,143.77,143.76,48.86266175]
[1749927281334,38.8455,143.83,143.79,6.9518]
[1749927281733,6.9508,143.82,143.79,6.9518]
[1749927282437,0.03055998,143.82,143.79,0.05226118]
[1749927283032,0.03055998,143.82,143.81,6.9509]
[1749927283928,0.03055998,143.82,143.8,48.80046175]
[1749927284129,0.03055998,143.82,143.8,41.84926175]
[1749927285141,38.8144,143.88,143.8,41.84926175]
[1749927285340,7.73669315,143.87,143.84,5.32926175]
[1749927285538,7.7089619,143.94,143.85,41.8234619]
[1749927285736,5.3034619,143.92,143.86,36.52]
[1749927286039,6.9469,143.9,143.86,36.52]
[1749927286245,6.9469,143.9,143.88,0.05147512]
[1749927286839,6.9471,143.89,143.88,0.05147512]
[1749927287144,5.30452447,143.92,143.88,0.05147512]
[1749927287331,7.73844307,143.91,143.88,0.05147512]
[1749927287544,5.30452447,143.92,143.88,0.05147512]
[1749927287833,6.9471,143.89,143.88,0.05147512]
[1749927288241,6.9468,143.9,143.88,0.05147512]
[1749927289636,6.9471,143.89,143.88,0.05147512]
[1749927293041,14.71732845,143.89,143.88,0.05147512]
[1749927293240,6.9471,143.89,143.88,0.05147512]
[1749927294650,6.9468,143.9,143.88,0.05147512]
[1749927295244,6.9471,143.89,143.88,0.05147512]
[1749927299645,9.76302447,143.93,143.88,0.05147512]
[1749927299646,6.9468,143.9,143.88,0.05147512]
[1749927300851,6.9471,143.89,143.88,0.05147512]
[1749927301754,6.9469,143.9,143.88,0.05147512]
[1749927303853,6.9464,143.91,143.88,0.05147512]
[1749927304150,6.9464,143.91,143.88,6.99867512]
[1749927304353,6.9459,143.92,143.88,0.05147512]
[1749927304557,2.1896,143.93,143.88,0.05147512]
[1749927304753,2.1896,143.93,143.88,6.99887512]
[1749927304955,6.9466,143.91,143.88,6.99887512]
[1749927306058,6.9466,143.91,143.89,6.9471]
[1749927306447,6.9459,143.92,143.89,6.9471]
[1749927306760,6.9459,143.92,143.89,43.47585335]
[1749927306960,4.6057,143.97,143.89,41.83327782]
[1749927307156,4.6057,143.97,143.91,5.30452447]
[1749927307460,4.6057,143.97,143.93,0.05241692]
[1749927308756,6.9446,143.95,143.93,0.05241692]
[1749927309260,6.9447,143.94,143.93,0.05241692]
[1749927310459,6.9447,143.94,143.93,1.692e-05]
[1749927316264,6.9447,143.94,143.82,106.33064802]
[1749927316265,6.948,143.88,143.85,37.32]
[1749927316657,5.30452447,143.91,143.85,44.2688]
[1749927316857,6.9474,143.89,143.85,37.32]
[1749927317362,0.04712708,143.88,143.86,0.04697748]
[1749927317862,0.04712708,143.88,143.86,6.99547748]
[1749927319158,0.04712708,143.88,143.86,0.04697748]
[1749927319365,2.87558206,143.87,143.86,0.04697748]
[1749927319660,2.87553522,143.87,143.86,6.99557748]
[1749927319856,2.87561997,143.87,143.86,6.99557748]
[1749927320062,7.75588388,143.87,143.86,6.99557748]
[1749927320267,7.75580301,143.87,143.86,0.04697748]
[1749927320565,4.88021214,143.87,143.86,0.04697748]
[1749927320770,0.04712708,143.88,143.86,5.35150195]
[1749927320968,0.04712708,143.88,143.86,0.04697748]
[1749927321164,2.87576372,143.87,143.86,0.04697748]
[1749927321366,7.75115047,143.87,143.86,0.04697748]
[1749927321668,6.99512708,143.88,143.86,0.04697748]
[1749927322572,6.9481,143.87,143.86,0.04697748]
[1749927328762,9.8155195,143.87,143.86,0.04697748]
[1749927328974,6.9481,143.87,143.86,0.04697748]
[1749927329572,6.99482708,143.88,143.86,0.04697748]
[1749927329870,0.04712708,143.88,143.86,0.04697748]
[1749927330378,6.99482708,143.88,143.86,0.04697748]
[1749927330877,0.04712708,143.88,143.86,5.35150195]
[1749927331376,39.5933,143.94,143.86,5.35150195]
[1749927331670,7.73914507,143.93,143.88,5.30452447]
[1749927331881,6.9462,143.91,143.88,12.25182447]
[1749927332064,6.9462,143.91,143.88,6.9473]
[1749927332469,6.9462,143.91,143.88,6.99745084]
[1749927333973,39.5933,143.94,143.89,6.9471]
[1749927334777,37.32,143.94,143.9,6.9466]
[1749927335076,2.3374,143.95,143.9,6.9466]
[1749927335377,2.3374,143.95,143.91,0.04459731]
[1749927335576,7.9554482,143.95,143.91,0.04459731]
[1749927336571,2.3374,143.95,143.91,0.04459731]
[1749927338178,6.9452,143.93,143.91,0.04459731]
[1749927339371,6.9447,143.95,143.91,0.04459731]
[1749927339677,39.6436,143.97,143.91,0.04459731]
[1749927339883,2.87356647,143.96,143.91,0.04459731]
[1749927340275,6.9443,143.95,143.92,6.9454]
[1749927341978,6.944,143.96,143.93,6.9452]
[1749927342184,2.3619,143.99,143.93,5.30452447]
[1749927342373,2.3619,143.99,143.95,0.05310588]
[1749927342977,6.9432,143.98,143.95,0.05310588]
[1749927343578,6.9432,143.98,143.95,6.99720588]
[1749927344386,2.3619,143.99,143.95,0.05310588]
[1749927344783,6.9429,143.98,143.95,0.05310588]
[1749927345283,6.9434,143.97,143.95,0.05310588]
[1749927345880,6.943,143.98,143.95,0.05310588]
[1749927346083,6.943,143.98,143.95,6.99710588]
[1749927348092,9.3044,143.99,143.95,6.99710588]
[1749927348286,6.9425,143.99,143.95,6.99710588]
[1749927348987,6.9429,143.98,143.95,6.99710588]
[1749927349189,6.9429,143.98,143.95,0.05310588]
[1749927349389,37.2,144.0,143.95,0.05310588]
[1749927349590,4.5416,144.02,143.95,5.35763035]
[1749927349791,10.17615114,144.02,143.95,5.35763035]
[1749927350089,6.9416,144.01,143.97,6.9432]
[1749927350395,4.5416,144.02,143.98,0.0478304]
[1749927350591,6.9423,144.0,143.98,0.0478304]
[1749927350787,4.5416,144.02,143.98,0.0478304]
[1749927351088,2.2121,144.02,143.98,0.0478304]
[1749927351286,2.2892,144.04,143.98,0.0478304]
[1749927351795,6.9401,144.04,144.0,6.9417]
[1749927351997,37.2,144.06,144.01,0.04471874]
[1749927352194,6.9398,144.05,144.01,12.29024321]
[1749927352394,6.9398,144.05,144.01,5.34924321]
[1749927352592,2.2096,144.07,144.01,42.54924321]
[1749927352897,6.9393,144.06,144.02,6.9404]
[1749927353496,6.9395,144.05,144.02,6.9404]
[1749927353901,6.9395,144.05,144.01,44.18591874]
[1749927354497,6.9395,144.05,144.02,6.9409]
[1749927354703,6.9391,144.06,144.02,6.9409]
[1749927355808,6.9395,144.05,144.02,6.9409]
[1749927356299,6.9392,144.06,144.03,6.9404]
[1749927356500,6.9392,144.06,144.03,6.98967881]
[1749927357093,2.1954,144.08,144.03,6.98967881]
[1749927357293,2.2379,144.09,144.03,0.04927881]
[1749927357498,2.3444,144.11,144.05,5.30452447]
[1749927357694,2.3444,144.11,144.07,0.04667695]
[1749927357895,37.18,144.16,144.07,5.35120142]
[1749927358095,5.30452447,144.14,144.1,0.04853067]
[1749927358302,5.30452447,144.14,144.11,0.04614406]
[1749927359004,5.30452447,144.14,144.06,5.30452447]
[1749927359305,4.3934,144.13,144.06,5.30452447]
[1749927359798,4.3934,144.13,144.08,5.30452447]
[1749927359999,0.04418437,144.12,144.09,0.04673564]
[1749927360195,6.98058437,144.12,144.09,0.04673564]
[1749927360396,0.04418437,144.12,144.09,0.04673564]
[1749927360603,0.04418437,144.12,144.09,5.35126011]
[1749927360902,0.04418437,144.12,144.09,42.53126011]
[1749927362208,0.04418437,144.12,144.11,6.9365]
[1749927362403,0.04418437,144.12,144.09,42.53126011]
[1749927363804,0.04418437,144.12,144.11,6.9365]
[1749927364703,0.04418437,144.12,144.1,6.9369]
[1749927365909,0.04418437,144.12,144.11,6.9366]
[1749927366310,0.04418437,144.12,144.1,6.9369]
[1749927367109,0.04418437,144.12,144.11,6.9366]
[1749927367310,0.04418437,144.12,144.11,12.24112447]
[1749927367502,4.9323547,144.18,144.12,6.9359]
[1749927367702,6.8957,144.19,144.09,37.22673564]
[1749927367703,5.30452447,144.16,144.09,37.18]
[1749927367903,6.9361,144.12,144.09,37.18]
[1749927368410,6.9361,144.12,144.09,0.05053994]
[1749927368411,5.30452447,144.12,144.09,0.05053994]
[1749927368612,7.84462347,144.11,144.06,37.16]
[1749927368798,6.939,144.06,144.04,37.16]
[1749927369004,5.30452447,144.1,144.04,37.16]
[1749927369307,7.84402455,144.09,144.04,37.16]
[1749927369513,6.9393,144.06,144.04,37.16]
[1749927369708,6.98355465,144.06,144.04,37.21017761]
[1749927370210,6.9394,144.05,144.04,37.21017761]
[1749927370998,6.98335465,144.06,144.04,37.21017761]
[1749927371203,0.04425465,144.06,144.04,0.05017761]
[1749927372206,6.9394,144.05,144.04,0.05017761]
[1749927372406,0.04425465,144.06,144.04,0.05017761]
[1749927372807,6.9394,144.05,144.04,0.05017761]
[1749927377507,12.24392447,144.05,144.04,0.05017761]
[1749927377714,5.30452447,144.05,144.01,37.16]
[1749927378309,6.9407,144.03,144.01,37.16]
[1749927378711,5.35040966,144.03,144.01,0.04833956]
[1749927379016,6.9409,144.02,144.01,0.04833956]
[1749927380219,6.98648519,144.03,144.01,0.04833956]
[1749927381014,0.04588519,144.03,144.01,0.04833956]
[1749927383714,6.9409,144.02,144.01,0.04833956]
[1749927387023,9.84052616,144.02,144.01,0.04833956]
[1749927387222,9.84059295,144.02,144.01,0.04833956]
[1749927387523,9.84073035,144.02,144.01,0.04833956]
[1749927387925,6.9409,144.02,144.01,0.04833956]
[1749927388222,9.84088371,144.02,144.01,0.04833956]
[1749927388408,6.9409,144.02,144.01,0.04833956]
[1749927388614,9.83639839,144.02,144.01,0.04833956]
[1749927388814,6.9409,144.02,144.01,0.04833956]
[1749927389108,0.04588519,144.03,144.01,0.04833956]
[1749927389509,0.04588519,144.03,144.01,6.98943956]
[1749927389721,0.04588519,144.03,144.02,5.30452447]
[1749927390222,0.04588519,144.03,144.02,12.24542447]
[1749927390423,6.9387,144.07,144.02,12.24542447]
[1749927390424,2.89732007,144.06,144.02,43.64452447]
[1749927390624,6.9387,144.07,144.02,43.64452447]
[1749927390819,2.89733566,144.06,144.03,6.9403]
[1749927391014,6.9381,144.08,144.02,43.64452447]
[1749927391217,38.34,144.1,144.04,5.30452447]
[1749927391414,5.30452447,144.11,144.04,5.30452447]
[1749927391415,0.05076748,144.08,144.06,0.04855257]
[1749927393225,0.05076748,144.08,144.06,6.98725257]
[1749927393728,0.05076748,144.08,144.06,0.04855257]
[1749927394327,6.98906748,144.08,144.06,0.04855257]
[1749927396628,6.9385,144.07,144.06,0.04855257]
[1749927396827,0.05076748,144.08,144.06,0.04855257]
[1749927397227,6.98906748,144.08,144.06,0.04855257]
[1749927397422,0.05076748,144.08,144.06,0.04855257]
[1749927397623,6.9385,144.07,144.06,0.04855257]
[1749927397826,0.05076748,144.08,144.06,0.04855257]
[1749927398221,0.05076748,144.08,144.06,6.98745257]
[1749927398418,0.05076748,144.08,144.06,38.38855257]
[1749927399328,0.05076748,144.08,144.07,6.9385]
[1749927400132,6.9362,144.12,144.09,6.9374]
[1749927400322,6.9362,144.12,144.06,38.34]
[1749927400522,6.9362,144.12,144.06,43.64452447]
[1749927400727,6.9362,144.12,144.08,6.9377]
[1749927401127,6.9362,144.12,144.09,0.0464607]
[1749927401333,10.03342447,144.13,144.09,0.0464607]
[1749927401723,6.9368,144.11,144.09,0.0464607]
[1749927402632,6.9362,144.12,144.09,0.0464607]
[1749927403724,6.9366,144.11,144.09,0.0464607]
[1749927404225,6.937,144.1,144.09,0.0464607]
[1749927410537,12.24152447,144.1,144.09,0.0464607]
[1749927410740,6.9386,144.07,144.02,5.30452447]
[1749927411036,6.9386,144.07,144.04,38.46]
[1749927411236,5.30452447,144.1,144.04,38.46]
[1749927411426,6.9383,144.08,144.04,45.3999]
[1749927411831,0.04964282,144.07,144.05,0.05292304]
[1749927412038,6.98824282,144.07,144.05,0.05292304]
[1749927413742,6.939,144.06,144.05,0.05292304]
[1749927414038,0.04964282,144.07,144.05,0.05292304]
[1749927415233,6.939,144.06,144.05,0.05292304]
[1749927420635,0.04964282,144.07,144.05,0.05292304]
[1749927420831,0.04964282,144.07,144.05,43.81744751]
[1749927421642,0.04964282,144.07,144.05,50.75654751]
[1749927421942,0.04964282,144.07,144.05,43.81744751]
[1749927423443,38.46,144.15,144.05,43.81744751]
[1749927423642,38.46,144.15,144.08,5.30452447]
[1749927423940,6.9359,144.13,144.1,6.937]
[1749927424437,6.9359,144.13,144.1,6.98735471]
[1749927424836,6.9361,144.12,144.1,0.05035471]
[1749927425031,7.65152447,144.17,144.1,0.05035471]
[1749927425643,6.9359,144.13,144.1,0.05035471]
[1749927426640,6.9359,144.13,144.1,6.98735471]
[1749927427244,6.9352,144.14,144.1,6.98735471]
[1749927428445,6.9356,144.13,144.1,6.98735471]
[1749927428943,6.9356,144.13,144.1,0.05035471]
[1749927429539,7.65152447,144.17,144.1,0.05035471]
[1749927429735,7.75669512,144.16,144.1,0.05035471]
[1749927430049,4.94545112,144.15,144.1,0.05035471]
[1749927430249,6.9359,144.13,144.1,0.05035471]
[1749927430443,7.65152447,144.17,144.1,0.05035471]
[1749927430650,5.30452447,144.15,144.1,0.05035471]
[1749927430949,6.9363,144.12,144.1,0.05035471]
[1749927431850,5.30452447,144.16,144.1,0.05035471]
[1749927432052,2.347,144.17,144.1,5.35487918]
[1749927432354,8.03495867,144.17,144.1,5.35487918]
[1749927432946,2.347,144.17,144.1,5.35487918]
[1749927433243,6.9352,144.14,144.11,6.9366]
[1749927434052,6.9352,144.14,144.1,12.29177918]
[1749927436147,6.9356,144.13,144.1,12.29177918]
[1749927436347,2.347,144.17,144.1,12.29177918]
[1749927436549,8.03769985,144.17,144.1,12.29177918]
[1749927436750,6.9354,144.14,144.1,12.29177918]
[1749927438355,6.9356,144.13,144.1,12.29177918]
[1749927438546,2.347,144.17,144.1,0.05035471]
[1749927438746,8.0373633,144.17,144.1,0.05035471]
[1749927439053,6.9361,144.12,144.1,0.05035471]
[1749927440557,6.9358,144.13,144.1,0.05035471]
[1749927443560,6.9361,144.12,144.1,0.05035471]
[1749927445562,6.9366,144.11,144.1,0.05035471]
[1749927447250,2.347,144.17,144.1,5.35487918]
[1749927447554,6.9355,144.14,144.1,12.29157918]
[1749927448950,6.9356,144.13,144.1,12.29157918]
[1749927449860,6.9356,144.13,144.1,0.05035471]
[1749927450161,5.30452447,144.14,144.1,0.05035471]
[1749927450761,6.9366,144.11,144.1,0.05035471]
[1749927452167,6.9366,144.11,144.06,37.68]
[1749927452168,6.9383,144.08,144.06,37.68]
[1749927452659,6.9385,144.07,144.06,37.68]
[1749927452854,5.30452447,144.08,144.03,37.68]
[1749927453052,0.04476927,144.07,144.04,0.04731021]
[1749927453256,6.9395,144.05,144.04,0.04731021]
[1749927454256,6.9411,144.02,144.0,47.68]
[1749927454459,5.30452447,144.06,144.0,47.68]
[1749927455162,0.05142782,144.04,144.02,0.04659631]
[1749927456061,6.9404,144.03,144.02,0.04659631]
[1749927460464,0.05142782,144.04,144.02,0.04659631]
[1749927460661,0.05142782,144.04,144.02,5.35112078]
[1749927461056,0.05142782,144.04,144.02,12.29152078]
[1749927461762,0.05142782,144.04,144.02,5.35112078]
[1749927462676,0.05142782,144.04,144.02,12.29192078]
[1749927462976,0.05142782,144.04,144.02,5.35112078]
[1749927463165,6.9382,144.08,144.04,6.9398]
[1749927463476,6.9382,144.08,144.04,12.24432447]
[1749927464279,0.0440318,144.07,144.05,0.04725933]
[1749927464464,6.9826318,144.07,144.05,0.04725933]
[1749927470073,0.0440318,144.07,144.05,0.04725933]
[1749927470273,0.0440318,144.07,144.06,5.30452447]
[1749927470479,6.9372,144.1,144.07,6.9384]
[1749927471275,5.30452447,144.12,144.04,37.02]
[1749927471580,5.30452447,144.12,144.07,0.0513013]
[1749927471779,6.938,144.08,144.07,0.0513013]
[1749927478571,6.9378,144.09,144.07,0.0513013]
[1749927478772,2.1837,144.15,144.08,37.02]
[1749927478974,2.1837,144.15,144.1,0.04763085]
[1749927479175,7.75973497,144.14,144.1,0.04763085]
[1749927479479,7.75986288,144.13,144.1,0.04763085]
[1749927479782,6.9363,144.12,144.1,0.04763085]
[1749927481174,9.1185,144.15,144.1,0.04763085]
[1749927481482,9.1185,144.15,144.11,6.9363]
[1749927481687,9.1185,144.15,144.1,5.35215532]
[1749927481990,37.02,144.19,144.13,6.9355]
[1749927482287,7.76869565,144.18,144.15,0.04472818]
[1749927482485,7.76881973,144.17,144.15,0.04472818]
[1749927482676,4.9630544,144.16,144.15,0.04472818]
[1749927482883,6.9326,144.2,144.15,0.04472818]
[1749927483087,7.7631399,144.19,144.15,0.04472818]
[1749927483384,4.95692718,144.18,144.15,0.04472818]
[1749927483578,6.9326,144.2,144.15,0.04472818]
[1749927483778,7.76415064,144.19,144.15,0.04472818]
[1749927483988,13.6717,144.21,144.15,0.04472818]
[1749927484291,2.80659589,144.2,144.17,6.9333]
[1749927484488,4.95820916,144.19,144.16,5.30452447]
[1749927484687,6.9319,144.21,144.17,37.02]
[1749927484882,7.60444181,144.2,144.18,0.04570661]
[1749927485087,6.9319,144.21,144.18,0.04570661]
[1749927485284,7.60502164,144.2,144.18,0.04570661]
[1749927485484,6.9319,144.21,144.18,0.04570661]
[1749927485688,4.85625802,144.2,144.18,0.04570661]
[1749927485883,6.9319,144.21,144.18,0.04570661]
[1749927486686,6.9308,144.23,144.18,5.35023108]
[1749927486890,6.9308,144.23,144.19,0.04625164]
[1749927487289,6.9316,144.22,144.19,0.04625164]
[1749927487489,6.7398,144.26,144.19,0.04625164]
[1749927487784,7.47833665,144.25,144.19,0.04625164]
[1749927487983,7.47860801,144.24,144.19,6.97895164]
[1749927488183,7.47860729,144.23,144.19,6.97895164]
[1749927488384,4.85700272,144.22,144.19,0.04625164]
[1749927488585,6.7398,144.26,144.19,0.04625164]
[1749927488780,6.9316,144.22,144.19,0.04625164]
[1749927489890,6.9316,144.22,144.19,6.97885164]
[1749927490897,4.88119718,144.21,144.19,0.04625164]
[1749927491101,5.30452447,144.23,144.19,0.04625164]
[1749927491398,6.9317,144.21,144.19,0.04625164]
[1749927492305,5.30452447,144.23,144.19,0.04625164]
[1749927492306,6.9322,144.2,144.19,0.04625164]
[1749927493206,6.9319,144.21,144.19,0.04625164]
[1749927494507,6.9322,144.2,144.19,0.04625164]
[1749927496901,6.9319,144.21,144.19,0.04625164]
[1749927500999,6.9322,144.2,144.19,0.04625164]
[1749927502307,6.932,144.21,144.19,0.04625164]
[1749927503308,6.9322,144.2,144.19,0.04625164]
[1749927504607,42.02452447,144.2,144.11,36.72]
[1749927504809,5.30452447,144.15,144.11,36.72]
[1749927505111,5.30452447,144.13,144.08,36.72]
[1749927505317,5.30452447,144.11,144.06,36.72]
[1749927505503,0.04585585,144.1,144.07,0.05329555]
[1749927506208,6.98325585,144.1,144.07,0.05329555]
[1749927506610,0.04585585,144.1,144.07,0.05329555]
[1749927506812,6.9376,144.09,144.07,0.05329555]
[1749927507313,6.98295585,144.1,144.07,0.05329555]
[1749927507516,0.04585585,144.1,144.07,0.05329555]
[1749927508010,0.04585585,144.1,144.07,6.99139555]
[1749927508216,0.04585585,144.1,144.07,0.05329555]
[1749927508716,0.04585585,144.1,144.07,6.99149555]
[1749927509312,0.04585585,144.1,144.08,6.9377]
[1749927511213,0.04585585,144.1,144.07,6.99159555]
[1749927512120,0.04585585,144.1,144.07,0.05329555]
[1749927512626,6.9379,144.09,144.07,0.05329555]
[1749927514220,6.938,144.08,144.07,0.05329555]
[1749927515414,6.9377,144.09,144.07,0.05329555]
[1749927515614,0.04585585,144.1,144.07,0.05329555]
[1749927516011,0.04585585,144.1,144.07,6.99169555]
[1749927516416,0.04585585,144.1,144.07,0.05329555]
[1749927516617,6.98315585,144.1,144.07,0.05329555]
[1749927518719,0.04585585,144.1,144.07,0.05329555]
[1749927519325,6.938,144.08,144.07,0.05329555]
[1749927534836,6.9377,144.09,144.07,0.05329555]
[1749927535037,0.04585585,144.1,144.07,0.05329555]
[1749927535634,6.98315585,144.1,144.07,6.99169555]
[1749927535836,6.98315585,144.1,144.07,0.05329555]
[1749927536235,6.98315585,144.1,144.07,5.35782002]
[1749927536738,0.04585585,144.1,144.07,5.35782002]
[1749927537141,6.98315585,144.1,144.07,12.29602002]
[1749927538847,6.9376,144.09,144.07,5.35782002]
[1749927539444,6.98305585,144.1,144.07,12.29622002]
[1749927540242,6.98305585,144.1,144.07,6.99169555]
[1749927541247,6.9375,144.09,144.07,6.99169555]
[1749927541951,0.04585585,144.1,144.07,6.99169555]
[1749927541952,6.938,144.08,144.07,0.05329555]
[1749927546243,6.9377,144.09,144.07,0.05329555]
[1749927546650,0.04585585,144.1,144.07,0.05329555]
[1749927547451,6.98315585,144.1,144.07,0.05329555]
[1749927549346,6.9375,144.09,144.07,0.05329555]
[1749927550148,0.04585585,144.1,144.07,0.05329555]